Workbook

Sheet Intro
B3: KSU-Bermuda Hay Economics
B5: An Excel spreadsheet to analyze the economics of planting bermuda grass and harvesting as hay.
L8: Version- 7.8.16
B28: INSTRUCTIONS FOR THE USER:
B29: Information in the Mound Valley Production and Mound Valley Budget tabs are based on research trials and are meant to provide an example of the economics of alternative Bermuda grass varieties. In the Projected production and Projected budget tabs users can enter data for their specific situtuations. In these tabs, all blue numbers are inputs and all other numbers are calculated from these inputs. The spreadsheet automatically recalculates every time an additional input is entered. Thus, it is important to wait until all data have been entered and reviewed before interpreting any of the calculated results (i.e., black numbers).
B33: FOR MORE INFORMATION:
B34: Developed by:
B36: Joseph Moyer | H36: Kevin C. Dhuyvetter, Ph.D.
B37: Professor Forage Research | H37: Former Agricultural Economist
B38: Southeast Agricultural Research Center | H38: Kansas State University
B39: Kansas State University
B40: jmoyer@k-state.edu
B41: (620) 421-4826
B44: Copyright 2016 AgManager.info, K-State Department of Agricultural Economics

Sheet Mound Valley Production
B3: Bermudagrass Hay Production
B5: Mound Valley Unit, K-State Southeast Ag. Research Center1
C7: Estimated | F7: Gross
C8: yield | D8: No. of small | E8: Hay value | F8: revenue
B9: Cultivar | C9: (tons/ac)2 | D9: square bales | E9: ($/bale) | F9: ($/ac)
B10: Midland 99 | C10: 5.5 | D10: =C10*40 -> 220 | E10: 3 | F10: =(D10*E10) -> 660
B11: Midland, Greenfield | C11: 5 | D11: =C11*40 -> 200 | E11: 3 | F11: =(D11*E11) -> 600
B12: Wrangler | C12: 4.9 | D12: =C12*40 -> 196 | E12: 3 | F12: =(D12*E12) -> 588
B13: Sungrazer, Cheyenne | C13: 6 | D13: =C13*40 -> 240 | E13: 3 | F13: =(D13*E13) -> 720
B14: 1 SEARC Report of Progress, Pages 25-29, http://www.oznet.ksu.edu/library/crpsl2/srp996.pdf
B15: 2 Adjusted to 12% moisture
B16: 3 Midland, Greenfield, and Cheyenne yields estimated from relative yield in other tests.

Sheet Mound Valley Budget
B2: Bermudagrass Meadow Costs
B3: ="w/ N @ $"&FIXED(C14,2)&" per lb." -> w/ N @ $0.45 per lb.
B5: Mound Valley Unit, K-State Southeast Ag. Research Center
D7: Sprigged types | G7: Seeded types
B8: Item | D8: ='Mound Valley Production'!B10 -> Midland 99 | E8: ='Mound Valley Production'!B11 -> Midland, Greenfield | G8: ='Mound Valley Production'!B12 -> Wrangler | H8: ='Mound Valley Production'!B13 -> Sungrazer, Cheyenne
B9: Establishment Costs
B10: Offset disk, $/ac | D10: 10 | E10: 10 | G10: 10 | H10: 10
B11: Tandem disk, $/ac | D11: 9 | E11: 9 | G11: 9 | H11: 9
B12: Field cultivate, $/ac | D12: 8 | E12: 8 | G12: 8 | H12: 8
B13: Fertilizer | C13: $/lb (ton) | D13: =SUMPRODUCT($C14:$C17,D14:D17) -> 91 | E13: =SUMPRODUCT($C14:$C17,E14:E17) -> 91 | G13: =SUMPRODUCT($C14:$C17,G14:G17) -> 91 | H13: =SUMPRODUCT($C14:$C17,H14:H17) -> 91
B14: Nitrogen, Price, lb/ac | C14: 0.45 | D14: 100 | E14: 100 | G14: 100 | H14: 100
B15: P2O5, Price, lb/ac | C15: 0.5 | D15: 40 | E15: 40 | G15: 40 | H15: 40
B16: K2O, Price, lb/ac | C16: 0.65 | D16: 40 | E16: 40 | G16: 40 | H16: 40
B17: Lime, Price, ton/ac | C17: 12 | D17: 0 | E17: 0 | G17: 0 | H17: 0
B18: Fertilizer application, $/ac | D18: 4.5 | E18: 4.5 | G18: 4.5 | H18: 4.5
B19: Sprigs/Seed | D19: =D20*D21 -> 65 | E19: =E20*E21 -> 50 | G19: =G20*G21 -> 66 | H19: =H20*H21 -> 75
B20: Rate, bu(lb)/ac | D20: 25 | E20: 25 | G20: 12 | H20: 12
B21: Price, $/bu(lb) | D21: 2.6 | E21: 2 | G21: 5.5 | H21: 6.25
B22: Sprigging/Seeding, $/ac | D22: 40 | E22: 40 | G22: 12 | H22: =G22 -> 12
B23: Herbicide* | D23: 24 | E23: 24 | G23: 10.5 | H23: 10.5
B24: Clipping | D24: 10 | E24: 10 | G24: 10 | H24: 10
B25: Expected life, years | D25: 20 | E25: 20 | G25: 20 | H25: 10
B26: Cost per acre | D26: =SUM(D10:D13,D18:D19,D22:D24) -> 261.5 | E26: =SUM(E10:E13,E18:E19,E22:E24) -> 246.5 | G26: =SUM(G10:G13,G18:G19,G22:G24) -> 221 | H26: =SUM(H10:H13,H18:H19,H22:H24) -> 230
B27: Annual Costs
B28: Fertilizer | C28: $/lb | D28: =SUMPRODUCT($C29:$C31,D29:D31) -> 150.975 | E28: =SUMPRODUCT($C29:$C31,E29:E31) -> 144.775 | G28: =SUMPRODUCT($C29:$C31,G29:G31) -> 137.685 | H28: =SUMPRODUCT($C29:$C31,H29:H31) -> 162.05
B29: Nitrogen, Price, lb/ac | C29: =C14 -> 0.45 | D29: =40*'Mound Valley Production'!$C$10 -> 220 | E29: =40*'Mound Valley Production'!$C$11 -> 200 | G29: =40*'Mound Valley Production'!$C$12 -> 196 | H29: =40*'Mound Valley Production'!$C$13 -> 240
B30: P2O5, Price, lb/ac | C30: =C15 -> 0.5 | D30: =64+(9.1*'Mound Valley Production'!$C$10)-51.2-(7.3*'Mound Valley Production'!$C$10) -> 22.7 | E30: =64+(9.1*'Mound Valley Production'!$C$11)-51.2-(7.3*'Mound Valley Production'!$C$11) -> 21.8 | G30: =64+(9.1*'Mound Valley Production'!$C$12)-51.2-(7.3*'Mound Valley Production'!$C$12) -> 21.62 | H30: =64+(9.1*'Mound Valley Production'!$C$13)-51.2-(7.3*'Mound Valley Production'!$C$13) -> 23.6
B31: K2O, Price, lb/ac | C31: =C16 -> 0.65 | D31: =105+(15*'Mound Valley Production'!$C$10)-70-(10*'Mound Valley Production'!$C$10) -> 62.5 | E31: =105+(15*'Mound Valley Production'!$C$10)-70-(10*'Mound Valley Production'!$C$11) -> 67.5 | G31: =105+(15*'Mound Valley Production'!$C$12)-70-(10*'Mound Valley Production'!$C$12) -> 59.5 | H31: =105+(15*'Mound Valley Production'!$C$13)-70-(10*'Mound Valley Production'!$C$13) -> 65
B32: Fertilizer application, $/ac | D32: 9 | E32: 9 | G32: 9 | H32: 9
B33: Stand maintenance** | D33: 0 | E33: 0 | G33: 0 | H33: =((2*H$22)+H$19)/H25 -> 9.9
B34: Interest on 1/2 of nonland costs | C34: 0.08 | D34: =$C34*(SUM(D28,D32:D33)/2) -> 6.399 | E34: =$C34*(SUM(E28,E32:E33)/2) -> 6.151 | G34: =$C34*(SUM(G28,G32:G33)/2) -> 5.8674 | H34: =$C34*(SUM(H28,H32:H33)/2) -> 7.238
B35: Haying cost, $/ton | C35: 60 | D35: =D41*$C35 -> 330 | E35: =E41*$C35 -> 300 | G35: =G41*$C35 -> 294 | H35: =H41*$C35 -> 360
B36: Total variable costs/acre | D36: =SUM(D28,D32:D35) -> 496.374 | E36: =SUM(E28,E32:E35) -> 459.926 | G36: =SUM(G28,G32:G35) -> 446.5524 | H36: =SUM(H28,H32:H35) -> 548.188
B37: Annualized establishment costs | D37: =-PMT($C34,D25,D26) -> 26.63435261 | E37: =-PMT($C34,E25,E26) -> 25.10656947 | G37: =-PMT($C34,G25,G26) -> 22.50933815 | H37: =-PMT($C34,H25,H26) -> 34.2767824
B38: Total cost, including land | C38: 20 | D38: =D36+D37+$C38 -> 543.0083526 | E38: =E36+E37+$C38 -> 505.0325695 | G38: =G36+G37+$C38 -> 489.0617381 | H38: =H36+H37+$C38 -> 602.4647824
B39: Total cost of hay, $/ton | D39: =D38/D41 -> 98.72879138 | E39: =E38/E41 -> 101.0065139 | G39: =G38/G41 -> 99.80851799 | H39: =H38/H41 -> 100.4107971
B40: Return over Total Costs
B41: Yield | D41: ='Mound Valley Production'!C10 -> 5.5 | E41: ='Mound Valley Production'!C11 -> 5 | G41: ='Mound Valley Production'!C12 -> 4.9 | H41: ='Mound Valley Production'!C13 -> 6
B42: Price | D42: 120 | E42: 120 | G42: 120 | H42: 120
B43: Income | D43: =D41*D42 -> 660 | E43: =E41*E42 -> 600 | G43: =G41*G42 -> 588 | H43: =H41*H42 -> 720
B44: Return over total costs | D44: =D43-D38 -> 116.9916474 | E44: =E43-E38 -> 94.96743053 | G44: =G43-G38 -> 98.93826185 | H44: =H43-H38 -> 117.5352176
B45: ="*Using 2.5 lb Karmex preemergence @ $7.63/lb for sprigged types, or 1 lb 2,4-D postemergence @ $5.56/lb for seeded types." -> *Using 2.5 lb Karmex preemergence @ $7.63/lb for sprigged types, or 1 lb 2,4-D postemergence @ $5.56/lb for seeded types.
B47: ="**Based on no-till drill @ $"&FIXED(G22,2)&"/acre and half seeding rate after 4 and 7 years." -> **Based on no-till drill @ $12.00/acre and half seeding rate after 4 and 7 years.
B50: Sensitivity of Return over Total Costs and Breakeven Prices to Nitrogen Prices
D51: Sprigged types | G51: Seeded types
B52: N-to-Hay | C52: N price | D52: =D8 -> Midland 99 | E52: =E8 -> Midland, Greenfield | G52: =G8 -> Wrangler | H52: =H8 -> Sungrazer, Cheyenne
B53: price ratio* | C53: $/lb | D53: Return over total costs at various nitrogen prices
B54: =C54/(D$42/2000) -> 2.5 | C54: =C60 -> 0.15 | D54: =D$43-(D$38-($C$14*D$14)*(1+$C$34)/D$25+D$14*$C60*(1+$C$34)/D$25-($C$29*D$29)*(1+$C$34)+(D$29)*$C60*(1+$C$34)) -> 189.8916474 | E54: 161.3874305 | G54: =G$43-(G$38-($C$14*G$14)*(1+$C$34)/G$25+G$14*$C60*(1+$C$34)/G$25-($C$29*G$29)*(1+$C$34)+(G$29)*$C60*(1+$C$34)) -> 164.0622619 | H54: 198.5352176
B55: =C55/(D$42/2000) -> 5 | C55: =C61 -> 0.3 | D55: 153.4416474 | E55: 128.1774305 | G55: 131.5002619 | H55: 158.0352176
B56: =C56/(D$42/2000) -> 7.5 | C56: =C62 -> 0.45 | D56: 116.9916474 | E56: 94.96743053 | G56: 98.93826185 | H56: 117.5352176
B57: =C57/(D$42/2000) -> 10 | C57: =C63 -> 0.6 | D57: 80.54164739 | E57: 61.75743053 | G57: 66.37626185 | H57: 77.0352176
B58: =C58/(D$42/2000) -> 12.5 | C58: =C64 -> 0.75 | D58: 44.09164739 | E58: 28.54743053 | G58: 33.81426185 | H58: 36.5352176
D59: Breakeven hay price at various nitrogen prices
B60: =B54 -> 2.5 | C60: =C61-0.15 -> 0.15 | D60: =(D$38-($C$14*D$14)*(1+$C$34)/D$25+D$14*$C60*(1+$C$34)/D$25-($C$29*D$29)*(1+$C$34)+(D$29)*$C60*(1+$C$34))/D$41 -> 85.47424593 | E60: 87.72251389 | G60: =(G$38-($C$14*G$14)*(1+$C$34)/G$25+G$14*$C60*(1+$C$34)/G$25-($C$29*G$29)*(1+$C$34)+(G$29)*$C60*(1+$C$34))/G$41 -> 86.51790574 | H60: 86.91079707
B61: =B55 -> 5 | C61: =C62-0.15 -> 0.3 | D61: 92.10151866 | E61: 94.36451389 | G61: 93.16321187 | H61: 93.66079707
B62: =B56 -> 7.5 | C62: =C14 -> 0.45 | D62: 98.72879138 | E62: 101.0065139 | G62: 99.80851799 | H62: 100.4107971
B63: =B57 -> 10 | C63: =+C62+0.15 -> 0.6 | D63: 105.3560641 | E63: 107.6485139 | G63: 106.4538241 | H63: 107.1607971
B64: =B58 -> 12.5 | C64: =C63+0.15 -> 0.75 | D64: 111.9833368 | E64: 114.2905139 | G64: 113.0991302 | H64: 113.9107971
B65: ="* Based on N price ($/lb) in each row and a hay price of $"&FIXED(D42,0)&" per ton." -> * Based on N price ($/lb) in each row and a hay price of $120 per ton.
B69: Figure 1. Return over Total Costs at Various Nitrogen Prices
B100: Figure 2. Breakeven Hay Price at Various Nitrogen Prices
B132: Bermuda Hay Economics.xls
B133: Developed by Joseph Moyer and Kevin C. Dhuyvetter
B134: Kansas State University

Sheet Projected production
B3: Bermudagrass Hay Production
B5: Blue values are inputs that can be changed by the user (black values are calculated from these inputs)
C7: Estimated | G7: Gross
C8: yield | D8: No. of small | E8: Hay value | F8: Hay value | G8: revenue
B9: Cultivar | C9: (tons/ac)1 | D9: square bales | E9: ($/bale) | F9: ($/ton) | G9: ($/ac)
B10: Midland 99 | C10: 5.5 | D10: =C10*40 -> 220 | E10: 3 | F10: =E10*40 -> 120 | G10: =($D10*E10) -> 660
B11: Midland, Greenfield | C11: 5 | D11: 200 | E11: 3 | F11: 120 | G11: 600
B12: Wrangler | C12: 4.9 | D12: 196 | E12: 3 | F12: 120 | G12: 588
B13: Sungrazer, Cheyenne | C13: 6 | D13: 240 | E13: 3 | F13: 120 | G13: 720
B14: Bermuda A | C14: 3.7 | D14: 148 | E14: 3 | F14: 120 | G14: 444
B15: Bermuda B | C15: 4 | D15: 160 | E15: 3 | F15: 120 | G15: 480
B16: 1 Adjusted to 12% moisture

Sheet Projected budget
B2: Bermudagrass Meadow Costs
B3: ="with nitrogen fertilizer @ $"&FIXED(C30,2)&" per lb." -> with nitrogen fertilizer @ $0.45 per lb.
B5: Blue values are inputs that can be changed by the user (black values are calculated from these inputs)
D7: Sprigged types | G7: Seeded types | J7: Your choice
B8: Item | D8: ='Projected production'!B10 -> Midland 99 | E8: ='Projected production'!B11 -> Midland, Greenfield | G8: ='Projected production'!B12 -> Wrangler | H8: ='Projected production'!B13 -> Sungrazer, Cheyenne | J8: ='Projected production'!B14 -> Bermuda A | K8: ='Projected production'!B15 -> Bermuda B
B9: Establishment Costs
B10: Offset disk, $/ac | D10: 10 | E10: 10 | G10: 10 | H10: 10 | J10: 10 | K10: 10
B11: Tandem disk, $/ac | D11: 9 | E11: 9 | G11: 9 | H11: 9 | J11: 9 | K11: 9
B12: Field cultivate, $/ac | D12: 8 | E12: 8 | G12: 8 | H12: 8 | J12: 8 | K12: 8
B13: Fertilizer | C13: $/lb (ton) | D13: =SUMPRODUCT($C14:$C17,D14:D17) -> 91 | E13: =SUMPRODUCT($C14:$C17,E14:E17) -> 91 | G13: =SUMPRODUCT($C14:$C17,G14:G17) -> 73 | H13: =SUMPRODUCT($C14:$C17,H14:H17) -> 73 | J13: =SUMPRODUCT($C14:$C17,J14:J17) -> 103.5 | K13: =SUMPRODUCT($C14:$C17,K14:K17) -> 85.5
B14: Nitrogen, Price, lb/ac | C14: 0.45 | D14: 100 | E14: 100 | G14: 60 | H14: 60 | J14: 100 | K14: 60
B15: P2O5, Price, lb/ac | C15: 0.5 | D15: 40 | E15: 40 | G15: 40 | H15: 40 | J15: 30 | K15: 30
B16: K2O, Price, lb/ac | C16: 0.65 | D16: 40 | E16: 40 | G16: 40 | H16: 40 | J16: 30 | K16: 30
B17: Lime, Price, ton/ac | C17: 12 | D17: 0 | E17: 0 | G17: 0 | H17: 0 | J17: 2 | K17: 2
B18: Fertilizer application, $/ac | D18: 4.5 | E18: 4.5 | G18: 4.5 | H18: 4.5 | J18: 4.5 | K18: 4.5
B19: Sprigs/Seed | D19: =D20*D21 -> 65 | E19: =E20*E21 -> 50 | G19: =G20*G21 -> 48 | H19: =H20*H21 -> 45 | J19: =J20*J21 -> 87.5 | K19: =K20*K21 -> 32
B20: Rate, bu (lb)/ac | D20: 25 | E20: 25 | G20: 12 | H20: 15 | J20: 25 | K20: 8
B21: Price, $/bu (lb) | D21: 2.6 | E21: 2 | G21: 4 | H21: 3 | J21: 3.5 | K21: 4
B22: Sprigging/Seeding, $/ac | D22: 40 | E22: 40 | G22: 12 | H22: =G22 -> 12 | J22: 40 | K22: 12
B23: Herbicide | D23: 24 | E23: 24 | G23: 10.5 | H23: =G23 -> 10.5 | J23: 24 | K23: 10.5
B24: Clipping | D24: 0 | E24: 0 | G24: 10 | H24: 10 | J24: 0 | K24: 10
B25: Expected life, years | D25: 20 | E25: 20 | G25: 20 | H25: 10 | J25: 20 | K25: 20
B26: Less seeding year hay, # bales/ac | C26: 50 | D26: =-('Projected production'!$E11)*$C26 -> -150 | E26: =-('Projected production'!$E11)*$C26 -> -150 | G26: =-('Projected production'!$E12)*$C26 -> -150 | H26: =-('Projected production'!$E13)*$C26 -> -150 | J26: =-('Projected production'!$E14)*$C26 -> -150 | K26: =-('Projected production'!$E15)*$C26 -> -150
B27: Net cost per acre | D27: =SUM(D10:D13,D18:D19,D22:D24,D26) -> 101.5 | E27: =SUM(E10:E13,E18:E19,E22:E24,E26) -> 86.5 | G27: =SUM(G10:G13,G18:G19,G22:G24,G26) -> 35 | H27: =SUM(H10:H13,H18:H19,H22:H24,H26) -> 32 | J27: =SUM(J10:J13,J18:J19,J22:J24,J26) -> 136.5 | K27: =SUM(K10:K13,K18:K19,K22:K24,K26) -> 31.5
B28: Annual Costs
B29: Fertilizer | C29: $/lb | D29: =SUMPRODUCT($C30:$C32,D30:D32) -> 150.975 | E29: =SUMPRODUCT($C30:$C32,E30:E32) -> 139.9 | G29: =SUMPRODUCT($C30:$C32,G30:G32) -> 137.685 | H29: =SUMPRODUCT($C30:$C32,H30:H32) -> 162.05 | J29: =SUMPRODUCT($C30:$C32,J30:J32) -> 111.105 | K29: =SUMPRODUCT($C30:$C32,K30:K32) -> 117.75
B30: Nitrogen, Price, lb/ac | C30: =C14 -> 0.45 | D30: =40*D43 -> 220 | E30: =40*E43 -> 200 | G30: =40*G43 -> 196 | H30: =40*H43 -> 240 | J30: =40*J43 -> 148 | K30: =40*K43 -> 160
B31: P2O5, Price, lb/ac | C31: =C15 -> 0.5 | D31: =64+(9.1*D43)-51.2-(7.3*D43) -> 22.7 | E31: =64+(9.1*E43)-51.2-(7.3*E43) -> 21.8 | G31: =64+(9.1*G43)-51.2-(7.3*G43) -> 21.62 | H31: =64+(9.1*H43)-51.2-(7.3*H43) -> 23.6 | J31: =64+(9.1*J43)-51.2-(7.3*J43) -> 19.46 | K31: =64+(9.1*K43)-51.2-(7.3*K43) -> 20
B32: K2O, Price, lb/ac | C32: =C16 -> 0.65 | D32: =105+(15*D43)-70-(10*D43) -> 62.5 | E32: =105+(15*E43)-70-(10*E43) -> 60 | G32: =105+(15*G43)-70-(10*G43) -> 59.5 | H32: =105+(15*H43)-70-(10*H43) -> 65 | J32: =105+(15*J43)-70-(10*J43) -> 53.5 | K32: =105+(15*K43)-70-(10*K43) -> 55
B33: Fertilizer application, $/ac | D33: 9 | E33: 9 | G33: 9 | H33: 9 | J33: 9 | K33: 9
B34: Stand maintenance* | D34: 0 | E34: 0 | G34: 0 | H34: =(((2*H$22)+H$19)/10)*H25/10 -> 6.9 | J34: 0 | K34: =(((2*K$22)+K$19)/10)*K25/10 -> 11.2
B35: Labor | D35: 0 | E35: 0 | G35: 0 | H35: 0 | J35: 0 | K35: 0
B36: Interest on 1/2 of nonland costs | C36: 0.08 | D36: =$C36*(SUM(D29,D33:D35)/2) -> 6.399 | E36: =$C36*(SUM(E29,E33:E35)/2) -> 5.956 | G36: =$C36*(SUM(G29,G33:G35)/2) -> 5.8674 | H36: =$C36*(SUM(H29,H33:H35)/2) -> 7.118 | J36: =$C36*(SUM(J29,J33:J35)/2) -> 4.8042 | K36: =$C36*(SUM(K29,K33:K35)/2) -> 5.518
B37: Haying cost, $/ton | C37: 60 | D37: =D43*$C37 -> 330 | E37: =E43*$C37 -> 300 | G37: =G43*$C37 -> 294 | H37: =H43*$C37 -> 360 | J37: =J43*$C37 -> 222 | K37: =K43*$C37 -> 240
B38: Total variable costs/acre | D38: =SUM(D29,D33:D37) -> 496.374 | E38: =SUM(E29,E33:E37) -> 454.856 | G38: =SUM(G29,G33:G37) -> 446.5524 | H38: =SUM(H29,H33:H37) -> 545.068 | J38: =SUM(J29,J33:J37) -> 346.9092 | K38: =SUM(K29,K33:K37) -> 383.468
B39: Annualized establishment costs | D39: =-PMT($C36,D25,D27) -> 10.3379992 | E39: =-PMT($C36,E25,E27) -> 8.810216063 | G39: =-PMT($C36,G25,G27) -> 3.564827309 | H39: =-PMT($C36,H25,H27) -> 4.768943638 | J39: =-PMT($C36,J25,J27) -> 13.9028265 | K39: =-PMT($C36,K25,K27) -> 3.208344578
B40: Total cost, including land | C40: 20 | D40: =D38+D39+$C40 -> 526.7119992 | E40: =E38+E39+$C40 -> 483.6662161 | G40: =G38+G39+$C40 -> 470.1172273 | H40: =H38+H39+$C40 -> 569.8369436 | J40: =J38+J39+$C40 -> 380.8120265 | K40: =K38+K39+$C40 -> 406.6763446
B41: Total cost of hay, $/ton | D41: =D40/D43 -> 95.76581804 | E41: =E40/E43 -> 96.73324321 | G41: =G40/G43 -> 95.94229129 | H41: =H40/H43 -> 94.97282394 | J41: =J40/J43 -> 102.9221693 | K41: =K40/K43 -> 101.6690861
B42: Return over Total Costs
B43: Yield | D43: ='Projected production'!C10 -> 5.5 | E43: ='Projected production'!C11 -> 5 | G43: ='Projected production'!C12 -> 4.9 | H43: ='Projected production'!C13 -> 6 | J43: ='Projected production'!C14 -> 3.7 | K43: ='Projected production'!C15 -> 4
B44: Price | D44: ='Projected production'!$F10 -> 120 | E44: ='Projected production'!$F11 -> 120 | G44: ='Projected production'!$F11 -> 120 | H44: ='Projected production'!$F11 -> 120 | J44: ='Projected production'!$F11 -> 120 | K44: ='Projected production'!$F11 -> 120
B45: Income | D45: =D43*D44 -> 660 | E45: =E43*E44 -> 600 | G45: =G43*G44 -> 588 | H45: =H43*H44 -> 720 | J45: =J43*J44 -> 444 | K45: =K43*K44 -> 480
B46: Return over total costs | D46: =D45-D40 -> 133.2880008 | E46: =E45-E40 -> 116.3337839 | G46: =G45-G40 -> 117.8827727 | H46: =H45-H40 -> 150.1630564 | J46: =J45-J40 -> 63.1879735 | K46: =K45-K40 -> 73.32365542
B47: ="* Based on no-till drill @ $"&FIXED(G22,2)&"/acre and half seeding rate twice in the 10-year projected life." -> * Based on no-till drill @ $12.00/acre and half seeding rate twice in the 10-year projected life.
B50: Sensitivity of Return over Total Costs and Breakeven Prices to Nitrogen Prices
D51: Sprigged types | G51: Seeded types | J51: Your choice
B52: N-to-Hay | C52: N price | D52: =D8 -> Midland 99 | E52: =E8 -> Midland, Greenfield | G52: =G8 -> Wrangler | H52: =H8 -> Sungrazer, Cheyenne | J52: =J8 -> Bermuda A | K52: =K8 -> Bermuda B
B53: price ratio* | C53: $/lb | D53: Return over total costs at various nitrogen prices
B54: =C54/(D$44/2000) -> 2.5 | C54: =C60 -> 0.15 | D54: =D$45-(D$40-($C$14*D$14)*(1+$C$36)/D$25+D$14*$C60*(1+$C$36)/D$25-($C$30*D$30)*(1+$C$36)+(D$30)*$C60*(1+$C$36)) -> 206.1880008 | E54: 182.7537839 | G54: =G$45-(G$40-($C$14*G$14)*(1+$C$36)/G$25+G$14*$C60*(1+$C$36)/G$25-($C$30*G$30)*(1+$C$36)+(G$30)*$C60*(1+$C$36)) -> 182.3587727 | H54: 229.8670564 | J54: =J$45-(J$40-($C$14*J$14)*(1+$C$36)/J$25+J$14*$C60*(1+$C$36)/J$25-($C$30*J$30)*(1+$C$36)+(J$30)*$C60*(1+$C$36)) -> 112.7599735 | K54: 126.1356554
B55: =C55/(D$44/2000) -> 5 | C55: =C61 -> 0.3 | D55: 169.7380008 | E55: 149.5437839 | G55: 150.1207727 | H55: 190.0150564 | J55: 87.9739735 | K55: 99.72965542
B56: =C56/(D$44/2000) -> 7.5 | C56: =C62 -> 0.45 | D56: 133.2880008 | E56: 116.3337839 | G56: 117.8827727 | H56: 150.1630564 | J56: 63.1879735 | K56: 73.32365542
B57: =C57/(D$44/2000) -> 10 | C57: =C63 -> 0.6 | D57: 96.8380008 | E57: 83.12378394 | G57: 85.64477269 | H57: 110.3110564 | J57: 38.4019735 | K57: 46.91765542
B58: =C58/(D$44/2000) -> 12.5 | C58: =C64 -> 0.75 | D58: 60.3880008 | E58: 49.91378394 | G58: 53.40677269 | H58: 70.45905636 | J58: 13.6159735 | K58: 20.51165542
D59: Breakeven hay price at various nitrogen prices
B60: =B54 -> 2.5 | C60: =C61-0.15 -> 0.15 | D60: =(D$40-($C$14*D$14)*(1+$C$36)/D$25+D$14*$C60*(1+$C$36)/D$25-($C$30*D$30)*(1+$C$36)+(D$30)*$C60*(1+$C$36))/D$43 -> 82.51127258 | E60: 83.44924321 | G60: =(G$40-($C$14*G$14)*(1+$C$36)/G$25+G$14*$C60*(1+$C$36)/G$25-($C$30*G$30)*(1+$C$36)+(G$30)*$C60*(1+$C$36))/G$43 -> 82.78392394 | H60: 81.68882394 | J60: =(J$40-($C$14*J$14)*(1+$C$36)/J$25+J$14*$C60*(1+$C$36)/J$25-($C$30*J$30)*(1+$C$36)+(J$30)*$C60*(1+$C$36))/J$43 -> 89.52433149 | K60: 88.46608614
B61: =B55 -> 5 | C61: =C62-0.15 -> 0.3 | D61: 89.13854531 | E61: 90.09124321 | G61: 89.36310761 | H61: 88.33082394 | J61: 96.22325041 | K61: 95.06758614
B62: =B56 -> 7.5 | C62: =C14 -> 0.45 | D62: 95.76581804 | E62: 96.73324321 | G62: 95.94229129 | H62: 94.97282394 | J62: 102.9221693 | K62: 101.6690861
B63: =B57 -> 10 | C63: =C62+0.15 -> 0.6 | D63: 102.3930908 | E63: 103.3752432 | G63: 102.521475 | H63: 101.6148239 | J63: 109.6210882 | K63: 108.2705861
B64: =B58 -> 12.5 | C64: =C63+0.15 -> 0.75 | D64: 109.0203635 | E64: 110.0172432 | G64: 109.1006586 | H64: 108.2568239 | J64: 116.3200072 | K64: 114.8720861
B65: ="* Based on N price ($/lb) in each row and a hay price of $"&FIXED(D44,2)&" per ton." -> * Based on N price ($/lb) in each row and a hay price of $120.00 per ton.
B68: Figure 1. Return over Total Costs at Various Nitrogen Prices
B103: Figure 2. Breakeven Hay Price at Various Nitrogen Prices
B138: Bermuda Hay Economics.xls
B139: Developed by Joseph Moyer and Kevin C. Dhuyvetter
B140: Kansas State University
